{"text_format":"3","workbook":"xlsx","n_sheets":1,"sheets":["Schichtplanung"],"not_rendered":{"defined_names":3},"read":"whole","date_system":"1900"}

{"sheet":"Schichtplanung","index":0,"n_rows":59,"n_cols":13,"rows_kept":59,"merged":[[0,1,0,5],[1,2,1,4],[2,2,2,4],[2,10,2,12]]}
[null,"Schichtplanung"]
[null,"Für die Woche von: "]
[null,"Name der Abteilung: "]
[]
[null,"MONTAG","07:00","08:00","09:00","10:00","11:00","12:00","13:00","14:00","15:00","Krank?","SUMME"]
[null,"Kevin F","Manager","Manager","Manager","Manager","Manager","Manager","Manager","Manager","Manager",null,{"$f":"COUNTIF(Schichtplanung!$C6:$K6,\"*\")","v":9}]
[null,"Thomas J",null,"Kassierer","Kassierer","Kassierer","Kassierer",{"$nulls":5},{"$f":"COUNTIF(Schichtplanung!$C7:$K7,\"*\")","v":4}]
[null,"Johannes S",null,"Warenausgabe","Warenausgabe","Warenausgabe","Warenausgabe ","Warenausgabe","Warenausgabe","Warenausgabe",null,null,{"$f":"COUNTIF(Schichtplanung!$C8:$K8,\"*\")","v":7}]
[null,"Jonathan M",null,"Warenausgabe","Warenausgabe","Warenausgabe","Warenausgabe ","Warenausgabe","Warenausgabe","Warenausgabe",null,null,{"$f":"COUNTIF(Schichtplanung!$C9:$K9,\"*\")","v":7}]
[null,"Sebastian P",{"$nulls":9},"Krank",{"$f":"COUNTIF(Schichtplanung!$C10:$K10,\"*\")","v":0}]
[null,"Theresa A",{"$nulls":5},"Kassierer","Kassierer","Kassierer","Kassierer",null,{"$f":"COUNTIF(Schichtplanung!$C11:$K11,\"*\")","v":4}]
[]
[null,"DIENSTAG","07:00","08:00","09:00","10:00","11:00","12:00","13:00","14:00","15:00","Krank?","SUMME"]
[null,"Kevin F","Manager","Manager","Manager","Manager","Manager","Manager","Manager","Manager","Manager",null,{"$f":"COUNTIF(Schichtplanung!$C14:$K14,\"*\")","v":9}]
[null,"Thomas J",null,"Kassierer","Kassierer","Kassierer","Kassierer",{"$nulls":5},{"$f":"COUNTIF(Schichtplanung!$C15:$K15,\"*\")","v":4}]
[null,"Johannes S",null,"Warenausgabe","Warenausgabe","Warenausgabe","Warenausgabe ","Warenausgabe","Warenausgabe","Warenausgabe",null,null,{"$f":"COUNTIF(Schichtplanung!$C16:$K16,\"*\")","v":7}]
[null,"Jonathan M",null,"Warenausgabe","Warenausgabe","Warenausgabe","Warenausgabe ","Warenausgabe","Warenausgabe","Warenausgabe",null,null,{"$f":"COUNTIF(Schichtplanung!$C17:$K17,\"*\")","v":7}]
[null,"Sebastian P",{"$nulls":9},"Krank",{"$f":"COUNTIF(Schichtplanung!$C18:$K18,\"*\")","v":0}]
[null,"Theresa A",{"$nulls":5},"Kassierer","Kassierer","Kassierer","Kassierer",null,{"$f":"COUNTIF(Schichtplanung!$C19:$K19,\"*\")","v":4}]
[]
[null,"MITTWOCH","07:00","08:00","09:00","10:00","11:00","12:00","13:00","14:00","15:00","Krank?","SUMME"]
[null,"Kevin F","Manager","Manager","Manager","Manager","Manager","Manager","Manager","Manager","Manager",null,{"$f":"COUNTIF(Schichtplanung!$C22:$K22,\"*\")","v":9}]
[null,"Thomas J",null,"Kassierer","Kassierer","Kassierer","Kassierer",{"$nulls":5},{"$f":"COUNTIF(Schichtplanung!$C23:$K23,\"*\")","v":4}]
[null,"Johannes S",null,"Warenausgabe","Warenausgabe","Warenausgabe","Warenausgabe ","Warenausgabe","Warenausgabe","Warenausgabe",null,null,{"$f":"COUNTIF(Schichtplanung!$C24:$K24,\"*\")","v":7}]
[null,"Jonathan M",null,"Warenausgabe","Warenausgabe","Warenausgabe","Warenausgabe ","Warenausgabe","Warenausgabe","Warenausgabe",null,null,{"$f":"COUNTIF(Schichtplanung!$C25:$K25,\"*\")","v":7}]
[null,"Sebastian P",{"$nulls":9},"Krank",{"$f":"COUNTIF(Schichtplanung!$C26:$K26,\"*\")","v":0}]
[null,"Theresa A",{"$nulls":5},"Kassierer","Kassierer","Kassierer","Kassierer",null,{"$f":"COUNTIF(Schichtplanung!$C27:$K27,\"*\")","v":4}]
[]
[null,"DONNERSTAG","07:00","08:00","09:00","10:00","11:00","12:00","13:00","14:00","15:00","Krank?","SUMME"]
[null,"Kevin F","Manager","Manager","Manager","Manager","Manager","Manager","Manager","Manager","Manager",null,{"$f":"COUNTIF(Schichtplanung!$C30:$K30,\"*\")","v":9}]
[null,"Thomas J",null,"Kassierer","Kassierer","Kassierer","Kassierer",{"$nulls":5},{"$f":"COUNTIF(Schichtplanung!$C31:$K31,\"*\")","v":4}]
[null,"Johannes S",null,"Warenausgabe","Warenausgabe","Warenausgabe","Warenausgabe ","Warenausgabe","Warenausgabe","Warenausgabe",null,null,{"$f":"COUNTIF(Schichtplanung!$C32:$K32,\"*\")","v":7}]
[null,"Jonathan M",null,"Warenausgabe","Warenausgabe","Warenausgabe","Warenausgabe ","Warenausgabe","Warenausgabe","Warenausgabe",null,null,{"$f":"COUNTIF(Schichtplanung!$C33:$K33,\"*\")","v":7}]
[null,"Sebastian P",{"$nulls":9},"Krank",{"$f":"COUNTIF(Schichtplanung!$C34:$K34,\"*\")","v":0}]
[null,"Theresa A",{"$nulls":5},"Kassierer","Kassierer","Kassierer","Kassierer",null,{"$f":"COUNTIF(Schichtplanung!$C35:$K35,\"*\")","v":4}]
[]
[null,"FREITAG","07:00","08:00","09:00","10:00","11:00","12:00","13:00","14:00","15:00","Krank?","SUMME"]
[null,"Kevin F","Manager","Manager","Manager","Manager","Manager","Manager","Manager","Manager","Manager",null,{"$f":"COUNTIF(Schichtplanung!$C38:$K38,\"*\")","v":9}]
[null,"Thomas J",null,"Kassierer","Kassierer","Kassierer","Kassierer",{"$nulls":5},{"$f":"COUNTIF(Schichtplanung!$C39:$K39,\"*\")","v":4}]
[null,"Johannes S",null,"Warenausgabe","Warenausgabe","Warenausgabe","Warenausgabe ","Warenausgabe","Warenausgabe","Warenausgabe",null,null,{"$f":"COUNTIF(Schichtplanung!$C40:$K40,\"*\")","v":7}]
[null,"Jonathan M",null,"Warenausgabe","Warenausgabe","Warenausgabe","Warenausgabe ","Warenausgabe","Warenausgabe","Warenausgabe",null,null,{"$f":"COUNTIF(Schichtplanung!$C41:$K41,\"*\")","v":7}]
[null,"Sebastian P",{"$nulls":9},"Krank",{"$f":"COUNTIF(Schichtplanung!$C42:$K42,\"*\")","v":0}]
[null,"Theresa A",{"$nulls":5},"Kassierer","Kassierer","Kassierer","Kassierer",null,{"$f":"COUNTIF(Schichtplanung!$C43:$K43,\"*\")","v":4}]
[]
[null,"SAMSTAG","07:00","08:00","09:00","10:00","11:00","12:00","13:00","14:00","15:00","Krank?","SUMME"]
[null,"Kevin F","Manager","Manager","Manager","Manager","Manager","Manager","Manager","Manager","Manager",null,{"$f":"COUNTIF(Schichtplanung!$C46:$K46,\"*\")","v":9}]
[null,"Thomas J",null,"Kassierer","Kassierer","Kassierer","Kassierer",{"$nulls":5},{"$f":"COUNTIF(Schichtplanung!$C47:$K47,\"*\")","v":4}]
[null,"Johannes S",null,"Warenausgabe","Warenausgabe","Warenausgabe","Warenausgabe ","Warenausgabe","Warenausgabe","Warenausgabe",null,null,{"$f":"COUNTIF(Schichtplanung!$C48:$K48,\"*\")","v":7}]
[null,"Jonathan M",null,"Warenausgabe","Warenausgabe","Warenausgabe","Warenausgabe ","Warenausgabe","Warenausgabe","Warenausgabe",null,null,{"$f":"COUNTIF(Schichtplanung!$C49:$K49,\"*\")","v":7}]
[null,"Sebastian P",{"$nulls":9},"Krank",{"$f":"COUNTIF(Schichtplanung!$C50:$K50,\"*\")","v":0}]
[null,"Theresa A",{"$nulls":5},"Kassierer","Kassierer","Kassierer","Kassierer",null,{"$f":"COUNTIF(Schichtplanung!$C51:$K51,\"*\")","v":4}]
[]
[null,"SONNTAG","07:00","08:00","09:00","10:00","11:00","12:00","13:00","14:00","15:00","Krank?","SUMME"]
[null,"Kevin F","Manager","Manager","Manager","Manager","Manager","Manager","Manager","Manager","Manager",null,{"$f":"COUNTIF(Schichtplanung!$C54:$K54,\"*\")","v":9}]
[null,"Thomas J",null,"Kassierer","Kassierer","Kassierer","Kassierer",{"$nulls":5},{"$f":"COUNTIF(Schichtplanung!$C55:$K55,\"*\")","v":4}]
[null,"Johannes S",null,"Warenausgabe","Warenausgabe","Warenausgabe","Warenausgabe ","Warenausgabe","Warenausgabe","Warenausgabe",null,null,{"$f":"COUNTIF(Schichtplanung!$C56:$K56,\"*\")","v":7}]
[null,"Jonathan M",null,"Warenausgabe","Warenausgabe","Warenausgabe","Warenausgabe ","Warenausgabe","Warenausgabe","Warenausgabe",null,null,{"$f":"COUNTIF(Schichtplanung!$C57:$K57,\"*\")","v":7}]
[null,"Sebastian P",{"$nulls":9},"Krank",{"$f":"COUNTIF(Schichtplanung!$C58:$K58,\"*\")","v":0}]
[null,"Theresa A",{"$nulls":5},"Kassierer","Kassierer","Kassierer","Kassierer",null,{"$f":"COUNTIF(Schichtplanung!$C59:$K59,\"*\")","v":4}]